[Event "53rd Indian Junior Open-ch 2024"]
[Site "Karnal"]
[Date "2024.09.18"]
[Round "3.7"]
[White "Nirvan Bhamidi"]
[Black "Mukund Hemant Agarwal"]
[Result "1/2-1/2"]
[ECO "B57"]
[WhiteElo "1916"]
[BlackElo "2073"]
[Annotator "TA"]
[PlyCount "101"]
[EventDate "2024.09.16"]
[EventType "swiss"]
[EventCountry "IND"]
[SourceTitle "playchess.com"]
[Source "ChessBase"]
[SourceQuality "1"]
[TimeControl "5400+30"]

{[%evp 17,101,29,31,37,35,32,42,25,28,27,50,49,70,78,79,0,34,25,29,27,50,-88,151,160,195,192,186,196,190,47,54,32,27,9,30,-97,12,-16,0,0,0,0,0,-19,254,-149,-156,-154,-158,-154,0,-157,-188,0,0,0,0,0,0,0,0,0,0,0,0,0,15,15,30,22,33,0,0,0,0,0,0,0,0,0,0,0,0,0,0,0]} 1. e4 {[%emt 0:00:03]} c5 {[%emt 0:00:05]} 2. Nf3 {[%emt 0:00:04]} d6 {[%emt 0:00:35]} 3. d4 {[%emt 0:00:04]} cxd4 {[%emt 0:00:07]} 4. Nxd4 {[%emt 0:00:04]} Nf6 {[%emt 0:00:20]} 5. Nc3 {[%emt 0:00:06]} Nc6 {[%emt 0:00:26]} 6. Bc4 {[%emt 0:00:53]} Qb6 {[%emt 0:01:58]} 7. Nb3 {[%emt 0:01:24]} e6 {[%emt 0:01:17]} 8. Bf4 {[%emt 0:01:42]} Ne5 {[%emt 0:01:27]} 9. Be2 {[%emt 0:00:27]} Bd7 {[%emt 0:01:56]} 10. Qd2 {[%emt 0:00:42]} Be7 {[%emt 0:01:50]} 11. O-O-O {[%emt 0:01:05]} O-O {[%emt 0:03:12]} 12. Be3 {[%emt 0:01:13] White is slightly better.} Qc7 {[%emt 0:00:31][%cal Ob7b5]} 13. Bg5 {[%emt 0:00:11]} Rfd8 {[%emt 0:22:30]} 14. Bxf6 {[%emt 0:01:18]} gxf6 {[%emt 0:02:05]} 15. f4 $1 {[%emt 0:14:53]} Nc4 {[%emt 0:02:59]} 16. Qd3 {[%emt 0:04:23]} (16. Qe1 $16) 16... Rac8 {[%emt 0:08:22]} 17. Qh3 {[%emt 0:03:48]} b5 {[%emt 0:05:00]} 18. Rd3 {[%emt 0:07:59] Qh6 would kill now.} Kh8 $1 {[%emt 0:02:49]} 19. Bh5 {[%emt 0:12:33]} (19. Qh5 $14 {stays ahead.} Rg8 20. a3 (20. Qxf7 Rg7 $17)) 19... Rg8 $2 {[%emt 0:10:26]} (19... Rf8 $17 20. Bg4 Rfd8) 20. Bxf7 $16 {[%emt 0:03:37]} e5 {[%emt 0:15:48]} 21. f5 {[%emt 0:02:45][%cal Oc3d5]} Rg7 {[%emt 0:00:08]} 22. Nd5 {[%emt 0:01:24][%csl LRc7,LRe7]} Qd8 {[%emt 0:00:46]} 23. Bh5 {[%emt 0:02:04]} (23. Be6 $18) 23... Bc6 $14 {[%emt 0:04:32]} 24. Rhd1 {[%emt 0:02:00]} Bxd5 {[%emt 0:01:08]} 25. Rxd5 {[%emt 0:01:26]} Qb6 {[%emt 0:01:56]} 26. R5d3 {[%emt 0:07:29] Wards off Ne3} (26. Re1 $1 $11) 26... Qf2 {[%emt 0:01:25]} (26... d5 $1 $17 {White must now prevent ...Qa6.} 27. exd5 (27. Rxd5 Ne3 $17) 27... e4) 27. Qf3 {[%emt 0:04:21]} (27. Nd2 {keeps more tension.} Rxg2 28. Bf7 Rxh2 29. Qf1) 27... Rxg2 {[%emt 0:01:52]} (27... Qxg2 {feels hotter.} 28. Nd2 Qxh2 29. Bg6 Qf4) 28. Qxf2 {[%emt 0:00:14]} Rxf2 {[%emt 0:00:02]} 29. Bf7 {[%emt 0:01:37]} Bf8 {[%emt 0:04:01] Strongly threatening ...Rc7.} 30. Kb1 {[%emt 0:03:38] [#]} Nxb2 $2 {[%emt 0:01:55][%mdl 8192]} 31. Kxb2 $2 {[%emt 0:00:27]} ({White must play} 31. Rg1 $1 $18 {[%csl Gf7][%cal Rg1g8]} Bg7 32. Kxb2 Rcxc2+ 33. Ka3 Rxa2+ 34. Kb4) 31... Rcxc2+ $17 {[%emt 0:00:03]} 32. Kb1 {[%emt 0:01:05] Rg1 would now be deadly.} Rb2+ {[%emt 0:00:05]} 33. Ka1 {[%emt 0:00:03] Nd2 is the strong threat.} Rxa2+ {[%emt 0:00:17]} 34. Kb1 {[%emt 0:00:04] [#] aiming for Nd2.} Rfb2+ {[%emt 0:02:11]} (34... Rxh2 $2 35. Nd2 Rhxd2 36. R3xd2 (36. R1xd2 Rxd2 37. Rxd2 Bh6 $18) 36... Rxd2 37. Rxd2 $18) (34... Bh6 $1 $17 {[%csl Ga2][%cal Rf2b2]} 35. Nd2 (35. Rxd6 $2 Rfb2#) 35... Raxd2) 35. Kc1 $11 {[%emt 0:00:05]} Rc2+ {[%emt 0:01:36]} 36. Kb1 {[%emt 0:00:04]} Rcb2+ {[%emt 0:02:50]} (36... Rxh2 $2 37. Nd2 Raxd2 38. R3xd2 (38. R1xd2 Rh1+ 39. Ka2 h5 $18) 38... Rxd2 39. Rxd2 $18) 37. Kc1 {[%emt 0:00:04]} Bh6+ {[%emt 0:00:00]} 38. Nd2 {[%emt 0:00:03]} Rc2+ {[%emt 0:00:00]} (38... Rxd2 $2 39. R1xd2 (39. R3xd2 Rxd2 40. Rxd2 Kg7 $18) 39... Rxd2 40. Rxd2 $18) 39. Kb1 {[%emt 0:00:04]} Rcb2+ {[%emt 0:00:00]} 40. Kc1 {[%emt 0:00:04]} Rc2+ {[%emt 0:00:00]} (40... Rxd2 $2 41. R1xd2 (41. R3xd2 Ra4 $18) 41... Rxd2 42. Rxd2 $18) 41. Kb1 {[%emt 0:00:03]} Rab2+ {[%emt 0:00:00]} 42. Ka1 {[%emt 0:00:03][%cal Od3g3] Hoping for Rg3!} Rxd2 {[%emt 0:01:16]} (42... Bxd2 $6 43. Rg1 Bg5 44. h4 $18) 43. Rg1 {[%emt 0:01:59]} Bg5 {[%emt 0:01:15]} 44. Rxd2 {[%emt 0:00:08]} (44. h4 $5) 44... Rxd2 $14 {[%emt 0:00:02][%mdl 4096] Endgame. KRB-KRB. The position is equal.} 45. h4 {[%emt 0:00:07]} Kg7 {[%emt 0:00:45]} (45... Bxh4 46. Rg8#) 46. Bd5 {[%emt 0:01:07]} h6 {[%emt 0:00:29][%cal Od2h2]} 47. hxg5 {[%emt 0:00:57]} ({Not} 47. Kb1 $2 Rh2 (47... Rxd5 $2 48. exd5 Kf7 49. hxg5 $18) 48. hxg5 hxg5 $19) 47... hxg5 {[%emt 0:00:02]} 48. Rb1 {[%emt 0:00:40]} Kh6 {[%emt 0:01:16]} 49. Rh1+ $1 {[%emt 0:00:15]} Kg7 {[%emt 0:00:03]} 50. Rc1 {[%emt 0:02:12] Repels Rc2. Threatens to win with Rc7+.} Kh6 {[%emt 0:00:25] And now ...g4 would win.} 51. Rh1+ {[%emt 0:22:59] White used his chance.   Weighted Error Value: White=0.38/Black=0.26 (precise) .  Loses game:     	---       	Black=1      Missed win:     	White=1     	---        Mistake:       	White=4     	Black=3      Inaccurate:     	White=3     	Black=1      OK:         	White=12    	Black=15     Best:        	White=5     	Black=3      Strong:       	White=2     	Black=1} 1/2-1/2

[Event "53rd Indian Junior Open-ch 2024"]
[Site "Karnal"]
[Date "2024.09.18"]
[Round "3.8"]
[White "Madhvendra Pratap Sharma"]
[Black "Arshpreet Singh"]
[Result "1-0"]
[ECO "D00"]
[WhiteElo "2061"]
[BlackElo "1905"]
[Annotator "RC"]
[PlyCount "133"]
[EventDate "2024.09.16"]
[EventType "swiss"]
[EventCountry "IND"]
[SourceTitle "playchess.com"]
[Source "ChessBase"]
[SourceQuality "1"]
[TimeControl "5400+30"]

1. d4 {[%emt 0:00:10]} Nf6 {[%emt 0:01:41]} 2. Nc3 {[%emt 0:00:03]} d5 {[%emt 0:00:06]} 3. Bf4 {[%emt 0:00:06]} c5 {[%emt 0:00:37]} 4. e3 {[%emt 0:02:59]} a6 {[%emt 0:00:45]} 5. dxc5 {[%emt 0:00:50]} Nc6 {[%emt 0:00:07]} 6. Nf3 {[%emt 0:00:13]} e6 {[%emt 0:02:44]} 7. Na4 {[%emt 0:00:34]} Bxc5 {[%emt 0:00:29]} 8. Nxc5 {[%emt 0:00:23]} Qa5+ {[%emt 0:00:02]} 9. c3 {[%emt 0:00:15]} Qxc5 {[%emt 0:00:05]} 10. Bd3 {[%emt 0:02:09]} O-O {[%emt 0:01:10]} 11. O-O {[%emt 0:01:04]} Re8 {[%emt 0:14:52]} 12. Ne5 {[%emt 0:01:19]} Nxe5 {[%emt 0:00:24]} 13. Bxe5 {[%emt 0:00:03]} Qe7 {[%emt 0:07:30]} 14. Qf3 {[%emt 0:03:26]} Nd7 {[%emt 0:00:08]} 15. Bg3 {[%emt 0:01:04]} Nc5 {[%emt 0:01:06]} 16. Bc2 {[%emt 0:00:36]} b5 {[%emt 0:02:14]} 17. b4 {[%emt 0:05:06]} Ne4 {[%emt 0:25:36]} 18. Bxe4 {[%emt 0:00:54]} dxe4 {[%emt 0:00:01]} 19. Qxe4 {[%emt 0:00:45]} Bb7 {[%emt 0:00:01]} 20. Qd4 {[%emt 0:01:14]} e5 {[%emt 0:01:37]} 21. Qg4 {[%emt 0:05:48]} Bd5 {[%emt 0:03:13]} 22. Rfd1 {[%emt 0:02:09]} Qb7 {[%emt 0:01:31]} 23. Rd2 {[%emt 0:05:23]} f6 {[%emt 0:12:58]} 24. e4 {[%emt 0:03:03]} Be6 {[%emt 0:00:20]} 25. Qe2 {[%emt 0:00:16]} Rac8 {[%emt 0:00:31]} 26. Qe3 {[%emt 0:00:29]} Rc4 {[%emt 0:01:21]} 27. f3 {[%emt 0:00:18]} Rec8 {[%emt 0:00:38]} 28. Rd3 {[%emt 0:06:26]} Qc7 {[%emt 0:11:39]} 29. Be1 {[%emt 0:01:33]} Rc6 {[%emt 0:01:11]} 30. Qd2 {[%emt 0:04:11]} a5 {[%emt 0:02:56]} 31. a3 {[%emt 0:03:02]} Ra6 {[%emt 0:02:07]} 32. Rd1 {[%emt 0:06:29]} axb4 {[%emt 0:00:05]} 33. axb4 {[%emt 0:01:23]} Ra2 {[%emt 0:00:21]} 34. Qe3 {[%emt 0:00:12]} Qa7 {[%emt 0:01:11]} 35. Qxa7 {[%emt 0:00:32]} Rxa7 {[%emt 0:00:16]} 36. Bf2 {[%emt 0:00:54]} Ra2 {[%emt 0:00:54]} 37. Bc5 {[%emt 0:00:31]} Rca8 {[%emt 0:00:35]} 38. Rd6 {[%emt 0:00:31]} Kf7 {[%emt 0:01:55]} 39. Rc6 {[%emt 0:05:41]} Rc2 {[%emt 0:02:14]} 40. Rc7+ {[%emt 0:00:31]} Kg6 {[%emt 0:01:07]} 41. Ba7 {[%emt 0:01:28]} Rc8 {[%emt 0:01:39]} 42. Re7 {[%emt 0:04:15]} Rc6 {[%emt 0:00:02]} 43. Ra1 {[%emt 0:02:29]} Ra2 {[%emt 0:00:43]} 44. Rxa2 {[%emt 0:08:02]} Bxa2 {[%emt 0:00:03]} 45. Bc5 {[%emt 0:00:07]} Bc4 {[%emt 0:00:07]} 46. Rd7 {[%emt 0:00:11]} Rc8 {[%emt 0:00:36]} 47. h4 {[%emt 0:02:49]} h6 {[%emt 0:01:15]} 48. Kf2 {[%emt 0:01:59]} Ra8 {[%emt 0:00:20]} 49. g4 {[%emt 0:03:36]} Kh7 {[%emt 0:00:32]} 50. Kg3 {[%emt 0:00:56]} Kg8 {[%emt 0:00:04]} 51. g5 {[%emt 0:00:19]} hxg5 {[%emt 0:01:22]} 52. hxg5 {[%emt 0:00:03]} Bf7 {[%emt 0:00:36]} 53. Be7 {[%emt 0:00:40]} Ra6 {[%emt 0:00:41]} 54. Rb7 {[%emt 0:00:45]} Ra3 {[%emt 0:00:40]} 55. gxf6 {[%emt 0:00:44]} Rxc3 {[%emt 0:00:29]} 56. Rb8+ {[%emt 0:00:58]} Kh7 {[%emt 0:00:08]} 57. fxg7 {[%emt 0:00:06]} Kxg7 {[%emt 0:00:13]} 58. Bd6 {[%emt 0:00:06]} Rb3 {[%emt 0:00:19]} 59. Bxe5+ {[%emt 0:01:30]} Kh7 {[%emt 0:00:01]} 60. Kg4 {[%emt 0:02:40]} Rb1 {[%emt 0:00:35]} 61. Rxb5 {[%emt 0:00:36]} Rg1+ {[%emt 0:00:01]} 62. Kf4 {[%emt 0:01:20]} Rf1 {[%emt 0:00:10]} 63. Rb7 {[%emt 0:00:26]} Kg8 {[%emt 0:00:41]} 64. Rb8+ {[%emt 0:00:28]} Kh7 {[%emt 0:00:04]} 65. Kg5 {[%emt 0:01:33]} Rg1+ {[%emt 0:00:13]} 66. Kf5 {[%emt 0:00:33]} Bg6+ {[%emt 0:00:26]} 67. Ke6 {[%emt 0:00:36]} 1-0

[Event "53rd Indian Junior Open-ch 2024"]
[Site "Karnal"]
[Date "2024.09.18"]
[Round "3.9"]
[White "Gokula Vishnu R"]
[Black "Hari Ganesh T"]
[Result "1/2-1/2"]
[ECO "C54"]
[WhiteElo "1908"]
[BlackElo "2029"]
[Annotator "TA"]
[PlyCount "87"]
[EventDate "2024.09.16"]
[EventType "swiss"]
[EventCountry "IND"]
[SourceTitle "playchess.com"]
[Source "ChessBase"]
[SourceQuality "1"]
[TimeControl "5400+30"]

{[%evp 12,87,12,3,29,0,3,13,7,-4,-13,-1,-4,0,-7,0,0,0,0,-4,33,19,14,0,0,-30,-28,-33,-28,-42,0,0,0,0,0,0,0,0,0,0,0,0,0,0,15,0,0,0,256,-4,-4,-4,-2,-2,-2,-2,-2,-2,0,0,-1,-16,-20,-57,0,0,0,0,0,0,0,0,0,0,0,0,29,53]} 1. e4 {[%emt 1:31:00]} e5 {[%emt 1:31:00]} 2. Nf3 {[%emt 0:00:30]} Nc6 {[%emt 0:00:30]} 3. Bc4 {[%emt 0:00:30]} Nf6 {[%emt 0:00:30]} 4. d3 {[%emt 0:00:30]} Bc5 {[%emt 0:00:30]} 5. O-O {[%emt 0:00:30]} d6 {[%emt 0:00:30]} 6. h3 {[%emt 0:00:30]} h6 {[%emt 0:00:30]} 7. c3 {[%emt 0:00:30]} a6 {[%emt 0:00:30]} 8. Be3 {[%emt 0:00:30]} O-O {[%emt 0:00:30]} 9. d4 {[%emt 0:00:30]} Ba7 {[%emt 0:00:30] The position is equal.} 10. dxe5 {[%emt 0:00:30]} Nxe5 {[%emt 0:00:30]} 11. Nxe5 {[%emt 0:00:30]} dxe5 {[%emt 0:00:30]} 12. Bxa7 {[%emt 0:00:30]} Rxa7 {[%emt 0:00:30]} 13. Qf3 {[%emt 0:00:30]} Qe7 {[%emt 0:00:30]} 14. Rd1 {[%emt 0:00:30]} Be6 {[%emt 0:00:30]} 15. Nd2 {[%emt 0:00:30][%cal Bb1d2,Bd2c4,Bc4e3,Be3f5][%mdl 32]} Rd8 {[%emt 0:00:30][%cal Od8d2] White must now prevent ...Rxd2!} 16. Bxe6 {[%emt 0:00:30]} Qxe6 {[%emt 0:00:30] [#]} 17. Nc4 $1 {[%emt 0:00:30]} Raa8 {[%emt 0:00:30]} (17... Rxd1+ 18. Rxd1 Ra8 (18... Qxc4 19. Rd8+) 19. b3 $14) 18. Ne3 {[%emt 0:00:30]} Rxd1+ {[%emt 0:00:30]} 19. Rxd1 {[%emt 0:00:30]} Qxa2 {[%emt 0:00:30]} 20. Nf5 {[%emt 0:00:30]} Qxb2 {[%emt 0:00:30] ...Qc2 is the strong threat.} 21. Qg3 $1 {[%emt 0:00:30][%csl LRe5,LRg7,LRh6]} Ne8 {[%emt 0:00:30]} 22. Nxh6+ {[%emt 0:00:30]} Kf8 {[%emt 0:00:30]} 23. Nf5 {[%emt 0:00:30][%cal Og3h4] Hoping for Qh4!} Qc2 {[%emt 0:00:30]} 24. Qg4 {[%emt 0:00:30]} g6 {[%emt 0:00:30]} (24... Qxc3 $2 25. Qh4 Kg8 26. Ne7+ Kf8 27. Nd5 $18) 25. Ne3 {[%emt 0:00:30]} Qxc3 {[%emt 0:00:30]} 26. Qg5 {[%emt 0:00:30]} Qc6 {[%emt 0:00:30] Repels Rd7} 27. Qxe5 {[%emt 0:00:30]} Qf6 {[%emt 0:00:30]} 28. Qc5+ {[%emt 0:00:30]} (28. Qd5 {simplifies} Qb6 29. Ng4 Nf6 30. Nxf6 Qxf6 31. Qxb7 Re8 32. Rc1) 28... Kg7 {[%emt 0:00:30]} 29. Ng4 {[%emt 0:00:30]} Qb2 {[%emt 0:00:30][%mdl 8192] [#]} (29... Qc6 $1 $11 {and Black has nothing to worry.} 30. Qe7 Nf6 31. Nxf6 Qxf6 32. Qxc7 b5) 30. Rd7 $2 {[%emt 0:00:30]} (30. e5 $1 $18 {[%cal Re5e6]}) 30... Nf6 $11 {[%emt 0:00:30]} (30... Qb1+ $2 31. Kh2 Qa1 32. Qc4 $18) 31. Nxf6 {[%emt 0:00:30] White threatens Ng4 and mate.} (31. Rxc7 Qb1+ (31... Nxe4 $2 32. Qd5 $18) 32. Kh2 Nxg4+ (32... Nxe4 33. Qe5+ Kg8 34. Nh6+ Kh7 35. Rxf7+ Kxh6 36. Qg7+ Kg5 37. f4+ Kh5 38. Qh7#) 33. hxg4 Qxe4) 31... Qa1+ {[%emt 0:00:30]} 32. Kh2 {[%emt 0:00:30]} Qxf6 {[%emt 0:00:30][%mdl 4096] Endgame. KQR-KQR} 33. e5 $132 {[%emt 0:00:30][%mdl 2048] White is not holding back} Qf4+ {[%emt 0:00:30]} 34. g3 {[%emt 0:00:30]} Qf5 {[%emt 0:00:30]} 35. Rxc7 {[%emt 0:00:30]} Rd8 {[%emt 0:00:30] Inhibits Qd4.} 36. Qe3 {[%emt 0:00:30][%cal Oe5e6] Prevents Rd2.} (36. Rxb7 Rd2 37. Rb8 (37. Kg1 $2 Rd1+ 38. Kh2 Qf3 $19) 37... Rxf2+ (37... Qxf2+ 38. Qxf2 Rxf2+ 39. Kg1 $11) 38. Kg1 Rf1+ 39. Kh2 Kh7 $19) (36. e6 {simplifies} Qxc5 37. Rxc5 Rb8 38. Rc7) 36... Rd7 {[%emt 0:00:30]} 37. Rc8 {[%emt 0:00:30]} Re7 {[%emt 0:00:30]} (37... Rd2 $1 $15 38. Qxd2 Qxc8) 38. Rb8 {[%emt 0:00:30]} Rc7 {[%emt 0:00:30]} 39. Qd4 {[%emt 0:00:30] Strongly threatening e6+.} Qd7 {[%emt 0:00:30]} 40. Qb2 {[%emt 0:00:30] Threatening mate with e6+.} Qb5 {[%emt 0:00:30]} 41. Qa1 {[%emt 0:00:30] e6+ would now be deadly.} Qe2 {[%emt 0:00:30]} 42. Qd4 {[%emt 0:00:30] And now Kg2 would win.} Rc4 {[%emt 0:00:30]} 43. Qb6 {[%emt 0:00:30]} Qxe5 {[%emt 0:00:30]} 44. Qd8 {[%emt 0:00:30] Weighted Error Value: White=0.16 (very precise) /Black=0.17 (very precise) .  Loses game:     	---       	Black=1      Missed win:     	White=1     	---        Mistake:       	---       	Black=1      Inaccurate:     	White=3     	Black=3      OK:         	White=20    	Black=17     Best:        	White=3     	Black=3} 1/2-1/2